fUST/lending_fUST_20250912
["ID","MTS","AMOUNT","RATE_DAILY","PERIOD"]
[385031911,1757647844567,-480.0,0.00015799,2]
[385031913,1757647844576,-527.42,0.00015799,2]
[385031915,1757647844584,-382.68,0.00015799,2]
[385031917,1757647844594,-480.0,0.00015799,2]
[385031919,1757647844603,-485.21,0.00015799,2]
[385031921,1757647844612,-480.0,0.00015799,2]
[385031923,1757647844621,-2984.01,0.00015799,2]
[385031925,1757647844631,-1000.0,0.000158,2]
[385031927,1757647844639,-2147.77265341,0.00015873,2]
[385031928,1757647844648,-480.0,0.00015896,2]
[385031930,1757647844657,-480.0,0.00015896,2]
[385031932,1757647844666,-480.0,0.00015896,2]
[385031934,1757647844675,-480.0,0.00015896,2]
[385031936,1757647844684,-480.0,0.00015896,2]
[385031938,1757647844694,-480.0,0.00015896,2]
[385031940,1757647844703,-480.0,0.00015896,2]
[385031942,1757647844712,-480.0,0.00015899,2]
[385031944,1757647844726,-470.03124356,0.00015972,2]
[385031946,1757647844735,-480.0,0.00015972,2]
[385031948,1757647844745,-437.15,0.00015972,2]
[385031950,1757647844754,-480.0,0.00015972,2]
[385031952,1757647844763,-480.0,0.00015972,2]
[385031954,1757647844772,-752.5,0.00015972,2]
[385031956,1757647844782,-480.0,0.00015973,2]
[385031958,1757647844792,-480.0,0.00015973,2]
[385031960,1757647844802,-480.0,0.00015973,2]
[385031971,1757647844900,-480.0,0.00015973,2]
[385031974,1757647844910,-480.0,0.00015973,2]
[385031976,1757647844919,-480.0,0.00015973,2]
[385031977,1757647844928,-480.0,0.00015973,2]
[385031979,1757647844937,-480.0,0.00015973,2]
[385031981,1757647844947,-480.0,0.00015973,2]
[385031983,1757647844956,-480.0,0.00015973,2]
[385031985,1757647844966,-480.0,0.00015973,2]
[385031987,1757647844975,-480.0,0.00015973,2]
[385031989,1757647844984,-480.0,0.00015973,2]
[385031991,1757647844996,-480.0,0.00015973,2]
[385031993,1757647845005,-238.55900896,0.00015973,2]
[385031995,1757647845015,-577.23125899,0.00015973,2]
[385031997,1757647845024,-480.0,0.00015973,2]
[385031999,1757647845033,-480.0,0.00015973,2]
[385032001,1757647845043,-1575.86,0.00015973,2]
[385032003,1757647845052,-480.0,0.00015973,2]
[385032005,1757647845062,-438.82938834,0.00015973,2]
[385032007,1757647845071,-480.0,0.00015973,2]
[385032009,1757647845080,-899.72,0.00016072,2]
[385032011,1757647845090,-504.53485017,0.00016073,2]
[385032013,1757647845100,-480.0,0.00016073,2]
[385032015,1757647845109,-485.21,0.00016073,2]
[385032017,1757647845119,-480.0,0.00016073,2]
[385032019,1757647845129,-2984.01,0.00016073,2]
[385032021,1757647845138,-480.0,0.0001617,2]
[385032023,1757647845148,-305.77958319,0.0001617,2]
[385032025,1757647845157,-480.0,0.0001617,2]
[385032027,1757647845166,-480.0,0.0001617,2]
[385032029,1757647845176,-480.0,0.0001617,2]
[385032031,1757647845185,-480.0,0.0001617,2]
[385032033,1757647845194,-480.0,0.0001617,2]
[385032035,1757647845203,-480.0,0.00016173,2]
[385032037,1757647845212,-720.0,0.00016189,2]
[385032038,1757647845221,-1247.33170681,0.000162,2]
[385032040,1757647845230,-1500.0,0.00016223,2]
[385032042,1757647845239,-1500.0,0.00016229,2]
[385032044,1757647845248,-480.04111764,0.00016245,2]
[385032046,1757647845257,-480.0,0.00016246,2]
[385032048,1757647845268,-480.0,0.00016246,2]
[385032050,1757647845277,-480.0,0.00016246,2]
[385032052,1757647845287,-752.5,0.00016246,2]
[385032054,1757647845297,-480.0,0.00016247,2]
[385032056,1757647845306,-480.0,0.00016247,2]
[385032058,1757647845316,-453.28,0.00016247,2]
[385032060,1757647845325,-480.0,0.00016247,2]
[385032062,1757647845334,-480.0,0.00016247,2]
[385032064,1757647845343,-480.0,0.00016247,2]
[385032066,1757647845353,-480.0,0.00016247,2]
[385032068,1757647845361,-425.65037408,0.00016247,2]
[385032070,1757647845371,-480.0,0.00016247,2]
[385032072,1757647845380,-480.0,0.00016247,2]
[385032074,1757647845389,-1575.86,0.00016247,2]
[385032076,1757647845399,-480.0,0.00016247,2]
[385032078,1757647845409,-518.58,0.00016247,2]
[385032080,1757647845419,-260.0,0.00016301,2]
[385032082,1757647845428,-899.72,0.00016346,2]
[385032084,1757647845437,-329.56411804,0.00016347,2]
[385032086,1757647845447,-485.21,0.00016347,2]
[385032088,1757647845458,-480.0,0.00016347,2]
[385032090,1757647845467,-2984.01,0.00016347,2]
[385032092,1757647845476,-500.0,0.00016438,2]
[385032094,1757647845485,-500.0,0.00016438,2]
[385032096,1757647845494,-500.0,0.00016438,2]
[385032098,1757647845503,-500.0,0.00016438,2]
[385032100,1757647845512,-500.0,0.00016438,2]
[385032102,1757647845521,-500.0,0.00016438,2]
[385032104,1757647845530,-500.0,0.00016438,2]
[385032106,1757647845539,-500.0,0.00016438,2]
[385032108,1757647845548,-480.0,0.00016444,2]
[385032110,1757647845557,-480.0,0.00016444,2]
[385032112,1757647845566,-480.0,0.00016444,2]
[385032114,1757647845576,-480.0,0.00016444,2]
[385032116,1757647845586,-480.0,0.00016444,2]
[385032118,1757647845594,-480.0,0.00016444,2]
[385032119,1757647845603,-480.0,0.00016447,2]
[385032122,1757647845613,-480.0,0.0001652,2]
[385032124,1757647845622,-480.0,0.0001652,2]
[385032126,1757647845631,-480.0,0.0001652,2]
[385032127,1757647845640,-752.5,0.0001652,2]
[385032129,1757647845649,-480.0,0.00016521,2]
[385032131,1757647845658,-480.0,0.00016521,2]
[385032133,1757647845667,-480.0,0.00016521,2]
[385032135,1757647845676,-480.0,0.00016521,2]
[385032137,1757647845685,-480.0,0.00016521,2]
[385032139,1757647845695,-480.0,0.00016521,2]
[385032141,1757647845704,-1575.86,0.00016521,2]
[385032143,1757647845715,-480.0,0.00016521,2]
[385032145,1757647845728,-899.72,0.0001662,2]
[385032147,1757647845738,-485.21,0.00016621,2]
[385032149,1757647845747,-480.0,0.00016621,2]
[385032151,1757647845756,-2984.01,0.00016621,2]
[385032153,1757647845765,-500.0,0.00016621,2]
[385032155,1757647845775,-480.0,0.00016718,2]
[385032157,1757647845785,-480.0,0.00016718,2]
[385032159,1757647845793,-480.0,0.00016718,2]
[385032161,1757647845803,-624.52985285,0.00016718,2]
[385032163,1757647845813,-480.0,0.00016718,2]
[385032165,1757647845822,-151.0,0.00016718,2]
[385032167,1757647845831,-154.26924,0.00016718,2]
[385032169,1757647845839,-480.0,0.00016718,2]
[385032171,1757647845848,-151.0,0.00016718,2]
[385032173,1757647845857,-151.0,0.00016718,2]
[385032175,1757647845867,-151.0,0.00016718,2]
[385032177,1757647845876,-151.0,0.00016718,2]
[385032179,1757647845886,-161.051459,0.00016718,2]
[385032181,1757647845896,-153.532687,0.00016718,2]
[385032183,1757647845905,-151.0,0.00016718,2]
[385032185,1757647845914,-151.0,0.00016718,2]
[385032187,1757647845924,-151.0,0.00016719,2]
[385032189,1757647845933,-151.0,0.00016719,2]
[385032191,1757647845942,-151.0,0.00016719,2]
[385032193,1757647845952,-151.0,0.00016719,2]
[385032195,1757647845961,-152.755332,0.00016719,2]
[385032197,1757647845971,-153.381209,0.00016719,2]
[385032200,1757647845979,-151.0,0.00016719,2]
[385032202,1757647845990,-151.0,0.00016719,2]
[385032204,1757647845999,-151.0,0.00016719,2]
[385032206,1757647846008,-151.0,0.00016719,2]
[385032208,1757647846017,-151.0,0.00016719,2]
[385032210,1757647846026,-151.0,0.00016719,2]
[385032212,1757647846035,-154.511059,0.00016719,2]
[385032214,1757647846044,-151.588811,0.00016719,2]
[385032216,1757647846053,-151.0,0.00016719,2]
[385032218,1757647846062,-380.0,0.00016719,2]
[385032220,1757647846071,-380.0,0.00016719,2]
[385032222,1757647846080,-380.0,0.00016719,2]
[385032224,1757647846089,-380.0,0.00016719,2]
[385032226,1757647846098,-151.0,0.00016719,2]
[385032228,1757647846107,-151.0,0.00016719,2]
[385032230,1757647846116,-151.0,0.00016719,2]
[385032232,1757647846125,-151.0,0.00016719,2]
[385032234,1757647846134,-154.057419,0.00016719,2]
[385032236,1757647846142,-154.057419,0.00016719,2]
[385032238,1757647846151,-154.057419,0.00016719,2]
[385032240,1757647846160,-154.057419,0.00016719,2]
[385032242,1757647846170,-151.0,0.00016719,2]
[385032244,1757647846179,-270.188107,0.00016719,2]
[385032245,1757647846188,-151.0,0.00016719,2]
[385032247,1757647846197,-151.0,0.00016719,2]
[385032249,1757647846206,-151.0,0.00016719,2]
[385032251,1757647846215,-151.0,0.00016719,2]
[385032253,1757647846224,-151.0,0.00016719,2]
[385032255,1757647846233,-615.20517676,0.00016721,2]
[385032257,1757647846242,-2000.0,0.00016771,2]
[385032259,1757647846251,-480.0,0.00016794,2]
[385032261,1757647846260,-480.0,0.00016794,2]
[385032263,1757647846269,-480.0,0.00016794,2]
[385032265,1757647846278,-151.0,0.00016794,2]
[385032267,1757647846287,-752.5,0.00016794,2]
[385032269,1757647846296,-480.0,0.00016795,2]
[385032271,1757647846306,-480.0,0.00016795,2]
[385032272,1757647846315,-480.0,0.00016795,2]
[385032273,1757647846324,-480.0,0.00016795,2]
[385032274,1757647846333,-480.0,0.00016795,2]
[385032275,1757647846342,-1575.86,0.00016795,2]
[385032276,1757647846352,-459.71,0.00016795,2]
[385032277,1757647846361,-360.0,0.00016849,2]
[385032278,1757647846370,-339.44485625,0.00016878,2]
[385032280,1757647846379,-899.72,0.00016894,2]
[385032282,1757647846388,-485.21,0.00016895,2]
[385032284,1757647846398,-480.0,0.00016895,2]
[385032286,1757647846408,-2984.01,0.00016895,2]
[385032288,1757647846416,-500.0,0.00016895,2]
[385032290,1757647846426,-151.0,0.0001699,2]
[385032292,1757647846435,-151.0,0.0001699,2]
[385032294,1757647846443,-151.0,0.0001699,2]
[385032296,1757647846452,-480.0,0.00016992,2]
[385032298,1757647846463,-480.0,0.00016992,2]
[385032300,1757647846472,-480.0,0.00016992,2]
[385032302,1757647846481,-151.0,0.00016992,2]
[385032304,1757647846490,-151.0,0.00016992,2]
[385032306,1757647846500,-151.0,0.00016992,2]
[385032308,1757647846509,-480.0,0.00016992,2]
[385032310,1757647846518,-480.0,0.00017068,2]
[385032312,1757647846527,-480.0,0.00017068,2]
[385032314,1757647846536,-480.0,0.00017068,2]
[385032316,1757647846545,-752.5,0.00017068,2]
[385032318,1757647846554,-480.0,0.00017069,2]
[385032320,1757647846563,-480.0,0.00017069,2]
[385032322,1757647846572,-480.0,0.00017069,2]
[385032324,1757647846582,-480.0,0.00017069,2]
[385032326,1757647846590,-480.0,0.00017069,2]
[385032328,1757647846599,-1575.86,0.00017069,2]
[385032330,1757647846608,-899.72,0.00017168,2]
[385032332,1757647846617,-485.21,0.00017169,2]
[385032334,1757647846626,-480.0,0.00017169,2]
[385032336,1757647846635,-2984.01,0.00017169,2]
[385032338,1757647846644,-500.0,0.00017169,2]
[385032340,1757647846653,-587.0,0.00017184,2]
[385032342,1757647846662,-296.00219998,0.00017266,2]
[385032344,1757647846671,-152.755382,0.00017266,2]
[385032346,1757647846680,-480.0,0.00017266,2]
[385032348,1757647846689,-480.0,0.00017266,2]
[385032350,1757647846698,-151.0,0.00017298,2]
[385032352,1757647846708,-151.945491,0.00017298,2]
[385032354,1757647846721,-2500.0,0.00017319,2]
[385032356,1757647846732,-480.0,0.00017342,2]
[385032358,1757647846741,-480.0,0.00017342,2]
[385032360,1757647846751,-505.86,0.00017342,2]
[385032362,1757647846760,-752.5,0.00017342,2]
[385032364,1757647846769,-480.0,0.00017343,2]
[385032366,1757647846778,-501.19884971,0.00017343,2]
[385032368,1757647846788,-480.0,0.00017343,2]
[385032370,1757647846799,-480.0,0.00017343,2]
[385032372,1757647846809,-480.0,0.00017343,2]
[385032374,1757647846818,-1575.86,0.00017343,2]
[385032376,1757647846827,-460.0,0.00017396,2]
[385032378,1757647846836,-899.72,0.00017442,2]
[385032380,1757647846846,-485.21,0.00017443,2]
[385032382,1757647846856,-382.97,0.00017443,2]
[385032384,1757647846865,-2984.01,0.00017443,2]
[385032386,1757647846875,-385.36645239,0.00017443,2]
[385032388,1757647846884,-152.40059947,0.00017468,2]
[385032390,1757647846893,-485.82,0.0001754,2]
[385032392,1757647846903,-480.0,0.0001754,2]
[385032394,1757647846912,-151.0,0.00017543,2]
[385032396,1757647846921,-480.0,0.00017616,2]
[385032398,1757647846930,-480.0,0.00017616,2]
[385032400,1757647846939,-752.5,0.00017616,2]
[385032402,1757647846948,-578.44950272,0.00017617,2]
[385032404,1757647846957,-480.0,0.00017617,2]
[385032406,1757647846966,-480.0,0.00017617,2]
[385032408,1757647846975,-480.0,0.00017617,2]
[385032410,1757647846984,-1575.86,0.00017617,2]
[385032412,1757647846994,-899.72,0.00017716,2]
[385032414,1757647847003,-485.21,0.00017717,2]
[385032425,1757647847087,-2984.01,0.00017717,2]
[385032427,1757647847106,-864.0,0.00017808,2]
[385032429,1757647847115,-480.0,0.00017814,2]
[385032431,1757647847125,-3000.0,0.00017867,2]
[385032433,1757647847134,-480.0,0.0001789,2]
[385032435,1757647847143,-509.1,0.0001789,2]
[385032437,1757647847152,-752.5,0.0001789,2]
[385032439,1757647847161,-480.0,0.00017891,2]
[385032441,1757647847171,-480.0,0.00017891,2]
[385032443,1757647847181,-480.0,0.00017891,2]
[385032445,1757647847190,-1575.86,0.00017891,2]
[385032447,1757647847199,-560.0,0.00017944,2]
[385032449,1757647847209,-152.40059948,0.00017973,2]
[385032451,1757647847218,-899.72,0.0001799,2]
[385032453,1757647847227,-485.21,0.00017991,2]
[385032455,1757647847236,-2984.01,0.00017991,2]
[385032457,1757647847245,-209.83,0.00018088,2]
[385032459,1757647847255,-480.0,0.00018164,2]
[385032461,1757647847264,-752.5,0.00018164,2]
[385032463,1757647847273,-480.0,0.00018165,2]
[385032465,1757647847282,-480.0,0.00018165,2]
[385032467,1757647847291,-378.73,0.00018165,2]
[385032469,1757647847300,-1575.86,0.00018165,2]
[385032471,1757647847309,-480.04111764,0.00018262,2]
[385032473,1757647847319,-899.72,0.00018264,2]
[385032475,1757647847328,-485.21,0.00018265,2]
[385032477,1757647847336,-2984.01,0.00018265,2]
[385032479,1757647847346,-420.56363564,0.00018415,2]
[385032481,1757647847355,-417.51,0.00018438,2]
[385032483,1757647847364,-752.5,0.00018438,2]
[385032485,1757647847373,-480.0,0.00018439,2]
[385032487,1757647847382,-480.0,0.00018439,2]
[385032489,1757647847391,-1575.86,0.00018439,2]
[385032491,1757647847400,-402.47984193,0.00018492,2]
[385032493,1757647847409,-180.569644,0.00018493,2]
[385032495,1757647847419,-152.40059947,0.00018529,2]
[385032497,1757647847427,-899.72,0.00018538,2]
[385032499,1757647847436,-485.21,0.00018539,2]
[385032501,1757647847446,-2984.01,0.00018539,2]
[385032503,1757647847455,-233.13074058,0.00018602,2]
[385032505,1757647847464,-847.0429734,0.00018602,2]
[385032507,1757647847474,-160.0,0.00018602,2]
[385032509,1757647847484,-752.5,0.00018712,2]
[385032511,1757647847493,-480.0,0.00018713,2]
[385032513,1757647847502,-480.0,0.00018713,2]
[385032515,1757647847511,-1575.86,0.00018713,2]
[385032517,1757647847520,-6602.81290664,0.00018777,2]
[385032519,1757647847529,-899.72,0.00018812,2]
[385032521,1757647847538,-485.21,0.00018813,2]
[385032523,1757647847547,-2984.01,0.00018813,2]
[385032525,1757647847557,-823.0,0.0001882,2]
[385032527,1757647847566,-752.5,0.00018986,2]
[385032529,1757647847575,-480.0,0.00018987,2]
[385032531,1757647847584,-480.0,0.00018987,2]
[385032533,1757647847593,-1575.86,0.00018987,2]
[385032535,1757647847602,-899.72,0.00019086,2]
[385032537,1757647847611,-485.21,0.00019087,2]
[385032539,1757647847619,-2984.01,0.00019087,2]
[385032541,1757647847628,-152.40059948,0.00019102,2]
[385032543,1757647847637,-752.5,0.0001926,2]
[385032545,1757647847646,-480.0,0.00019261,2]
[385032547,1757647847655,-480.0,0.00019261,2]
[385032549,1757647847664,-1575.86,0.00019261,2]
[385032551,1757647847673,-151.0,0.000193,2]
[385032553,1757647847683,-899.72,0.0001936,2]
[385032555,1757647847692,-485.21,0.00019361,2]
[385032557,1757647847701,-2984.01,0.00019361,2]
[385032559,1757647847710,-752.5,0.00019534,2]
[385032561,1757647847722,-480.0,0.00019535,2]
[385032563,1757647847731,-480.0,0.00019535,2]
[385032565,1757647847740,-1575.86,0.00019535,2]
[385032567,1757647847749,-1000.0,0.00019589,20]
[385032569,1757647847758,-899.72,0.00019634,2]
[385032571,1757647847767,-485.21,0.00019635,2]
[385032573,1757647847775,-2984.01,0.00019635,2]
[385032575,1757647847785,-152.40059947,0.00019693,2]
[385032577,1757647847794,-752.5,0.00019808,2]
[385032579,1757647847802,-480.0,0.00019809,2]
[385032581,1757647847811,-480.0,0.00019809,2]
[385032583,1757647847820,-1575.86,0.00019809,2]
[385032585,1757647847829,-285371.29065236,0.00019898,2]
[385032587,1757647847838,-151.0,0.00019898,2]
[385032589,1757647847847,-151.0,0.00019898,2]
[385032590,1757647847856,-151.0,0.00019898,2]
[385032593,1757647847865,-151.0,0.00019898,2]
[385032595,1757647847874,-171.558176,0.00019898,2]
[385032596,1757647847883,-152.825135,0.00019898,2]
[385032598,1757647847892,-151.0,0.00019898,2]
[385032600,1757647847901,-151.0,0.00019898,2]
[385032602,1757647847911,-380.0,0.00019898,2]
[385032604,1757647847919,-380.0,0.00019898,2]
[385032606,1757647847928,-380.0,0.00019898,2]
[385032608,1757647847937,-151.0,0.00019898,2]
[385032610,1757647847946,-380.0,0.00019898,2]
[385032612,1757647847955,-151.0,0.00019898,2]
[385032614,1757647847964,-164.602516,0.00019898,2]
[385032616,1757647847973,-151.0,0.00019898,2]
[385032618,1757647847983,-151.0,0.00019898,2]
[385032620,1757647847991,-154.057419,0.00019898,2]
[385032622,1757647848000,-154.057419,0.00019898,2]
[385032624,1757647848009,-154.057419,0.00019898,2]
[385032626,1757647848018,-154.057419,0.00019898,2]
[385032628,1757647848027,-151.0,0.00019898,2]
[385032630,1757647848037,-151.0,0.00019898,2]
[385032632,1757647848046,-151.0,0.00019898,2]
[385032634,1757647848055,-151.0,0.00019898,2]
[385032636,1757647848065,-151.0,0.00019898,2]
[385032638,1757647848074,-151.0,0.00019898,2]
[385032640,1757647848084,-151.0,0.00019898,2]
[385032642,1757647848093,-151.0,0.00019898,2]
[385032644,1757647848103,-151.0,0.00019898,2]
[385032646,1757647848112,-151.0,0.00019898,2]
[385032648,1757647848121,-210.305244,0.00019898,2]
[385032650,1757647848130,-151.0,0.00019898,2]
[385032652,1757647848139,-8007.2461588,0.000199,2]
[385032654,1757647848148,-899.72,0.00019908,2]
[385032656,1757647848157,-485.21,0.00019909,2]
[385032658,1757647848166,-2984.01,0.00019909,2]
[385032660,1757647848175,-217.7145751,0.00019965,2]
[385032662,1757647848186,-1517.76787309,0.0002,2]
[385032664,1757647848195,-752.5,0.00020082,2]
[385032666,1757647848204,-198.12,0.00020083,2]
[385032668,1757647848213,-480.0,0.00020083,2]
[385032670,1757647848222,-1575.86,0.00020083,2]
[385032672,1757647848231,-899.72,0.00020182,2]
[385032674,1757647848240,-485.21,0.00020183,2]
[385032676,1757647848249,-2984.01,0.00020183,2]
[385032678,1757647848258,-583.025829,0.00020187,2]
[385032680,1757647848268,-173.572,0.00020271,2]
[385032682,1757647848277,-480.04111764,0.00020279,2]
[385032684,1757647848287,-153.932158,0.00020299,2]
[385032686,1757647848296,-50.66431411,0.00020299,2]
[385032697,1757647848385,-864.21073143,0.00020299,2]
[385032759,1757647848973,-463.49354728,0.00014429,2]
[385032762,1757647848985,-121.28805971,0.00014429,2]
[385032764,1757647848995,-385.54892156,0.00020299,2]
[385032788,1757647849214,-584.78160699,0.00014285,2]
[385032790,1757647849224,-160.0,0.00015712,2]
[385032792,1757647849233,-409.0,0.00018096,2]
[385032794,1757647849242,-217.7145751,0.00019944,2]
[385032796,1757647849252,-6706.82219152,0.00020299,2]
[385032798,1757647849261,-752.5,0.00020356,2]
[385032800,1757647849270,-177.02,0.00020357,2]
[385032802,1757647849280,-1360.0067031,0.00020357,2]
[385032804,1757647849291,-215.8532969,0.00020357,2]
[385032806,1757647849300,-899.72,0.00020456,2]
[385032807,1757647849310,-469.67177492,0.00020457,2]
[385032809,1757647849319,-485.21,0.00020457,2]
[385032811,1757647849328,-2984.01,0.00020457,2]
[385032813,1757647849337,-1152.0,0.00020612,2]
[385032815,1757647849347,-478.39290693,0.0002063,2]
[385032817,1757647849358,-274.29709307,0.0002063,2]
[385032819,1757647849367,-497.15622943,0.00020631,2]
[385032821,1757647849378,-1078.7909778,0.00020631,2]
[385032823,1757647849387,-2282.78788003,0.00020699,2]
[385032826,1757647849399,-870.95154028,0.00020699,2]
[385034182,1757647867429,480.0,0.00014185,2]
[385034183,1757647890689,480.0,0.00014185,2]
[385034185,1757647907937,4010.87380709,0.00014229,2]
[385034186,1757647907971,10000.01,0.00014229,2]
[385034187,1757647908002,10000.01,0.00014229,2]
[385034188,1757647908031,10000.01,0.00014229,2]
[385034189,1757647908068,10000.01,0.00014229,2]
[385034190,1757647908098,10000.01,0.00014229,2]
[385034191,1757647908129,10000.01,0.00014229,2]
[385034192,1757647908160,10000.01,0.00014229,2]
[385034193,1757647908192,10000.01,0.00014229,2]
[385034194,1757647908224,10000.01,0.00014229,2]
[385034195,1757647908255,10000.01,0.00014229,2]
[385034196,1757647908287,10000.01,0.00014229,2]
[385034197,1757647923411,4960.75631747,0.00013946,2]
[385034202,1757647955518,553.874537,0.00013699,2]
[385034212,1757648113539,4485.37914553,0.00013946,2]
[385034213,1757648113567,1932.27661976,0.00013946,2]
[385034214,1757648137268,171.18194806,0.00013986,2]
[385034215,1757648160519,171.18194806,0.00013986,2]
[385034216,1757648183707,171.18194806,0.00013986,2]
[385034217,1757648207458,171.18194806,0.00013986,2]
[385034218,1757648231402,171.18194806,0.00013986,2]
[385034219,1757648254035,171.18194806,0.00013986,2]
[385034220,1757648278371,171.18194806,0.00013986,2]
[385034221,1757648302782,171.18194806,0.00013986,2]
[385034222,1757648327356,171.18194806,0.00013986,2]
[385034228,1757648352407,171.18194806,0.00013986,2]
[385034229,1757648375610,171.18194806,0.00013986,2]
[385034230,1757648398617,171.18194806,0.00013986,2]
[385034232,1757648421683,171.18194806,0.00013986,2]
[385034233,1757648446908,171.18194806,0.00013986,2]
[385034234,1757648470966,171.18194806,0.00013986,2]
[385034235,1757648493583,171.18194806,0.00013986,2]
[385034237,1757648516758,171.18194806,0.00013986,2]
[385034239,1757648540069,171.18194806,0.00013986,2]
[385034240,1757648546691,4640.0,0.00027397,120]
[385034241,1757648562825,171.18194806,0.00013986,2]
[385034242,1757648586745,171.18194806,0.00013986,2]
[385034243,1757648610631,171.18194806,0.00013986,2]
[385034244,1757648633820,157.72190729,0.00013986,2]
[385034249,1757648762035,10000.0,0.00013239,2]
[385034260,1757648939397,526.18081,0.00013699,2]
[385034290,1757649032051,-171.18194806,0.00014126,2]
[385034292,1757649032060,-360.03083823,0.00014128,2]
[385034294,1757649032069,-300.0,0.00014226,2]
[385034296,1757649032079,-300.0,0.00014226,2]
[385034298,1757649032087,-826.25278134,0.00014226,2]
[385034299,1757649032103,-332.80384761,0.00014226,2]
[385034300,1757649032159,-40.94337105,0.00014226,2]
[385034301,1757649032168,-480.0,0.00014227,2]
[385034302,1757649032178,-55.38948249,0.00014227,2]
[385034303,1757649032189,-424.61051751,0.00014227,2]
[385034305,1757649032198,-180.67861415,0.00014227,2]
[385034307,1757649032207,-392.16436216,0.00014227,2]
[385034309,1757649032216,-480.0,0.00014227,2]
[385034311,1757649032224,-480.0,0.00014227,2]
[385034313,1757649032233,-480.0,0.00014227,2]
[385034314,1757649032242,-480.0,0.00014227,2]
[385034315,1757649032251,-480.0,0.00014227,2]
[385034316,1757649032259,-480.0,0.00014227,2]
[385034317,1757649032268,-480.0,0.00014227,2]
[385034318,1757649032277,-181.51569195,0.00014227,2]
[385034319,1757649032286,-480.0,0.00014227,2]
[385034320,1757649032295,-480.0,0.00014227,2]
[385034321,1757649032304,-480.0,0.00014227,2]
[385034322,1757649032316,-480.0,0.00014227,2]
[385034323,1757649032325,-480.0,0.00014227,2]
[385034324,1757649032334,-486.6657806,0.00014227,2]
[385034325,1757649032343,-480.0,0.00014227,2]
[385034327,1757649032352,-482.60993904,0.00014227,2]
[385034329,1757649032362,-480.0,0.00014227,2]
[385034331,1757649032371,-480.0,0.00014227,2]
[385034333,1757649032380,-480.0,0.00014227,2]
[385034334,1757649032392,-480.0,0.00014227,2]
[385034336,1757649032401,-480.0,0.00014227,2]
[385034338,1757649032410,-480.0,0.00014227,2]
[385034340,1757649032419,-480.0,0.00014227,2]
[385034342,1757649032428,-480.0,0.00014228,2]
[385034344,1757649032437,-480.0,0.00014228,2]
[385034346,1757649032446,-480.0,0.00014228,2]
[385034348,1757649032456,-480.0,0.00014228,2]
[385034350,1757649032465,-177.7503558,0.00014228,2]
[385034352,1757649032474,-480.0,0.00014228,2]
[385034354,1757649032483,-480.0,0.00014228,2]
[385034356,1757649032492,-483.68109496,0.00014228,2]
[385034358,1757649032502,-626.58335917,0.00014228,2]
[385034360,1757649032511,-173.26400369,0.00014228,2]
[385034362,1757649032520,-480.0,0.00014228,2]
[385034364,1757649032529,-480.0,0.00014228,2]
[385034366,1757649032539,-480.0,0.00014228,2]